fUSD/lending_fUSD_20240314
["ID","MTS","AMOUNT","RATE_DAILY","PERIOD"]
[318705078,1710375032208,-178.88175252,0.00023858,2]
[318705080,1710375032218,-197.22865716,0.00023859,2]
[318705081,1710375032231,-14.01400223,0.00023859,2]
[318705082,1710375032241,-150.0,0.00023862,120]
[318705083,1710375032250,-3854.81081386,0.00024109,2]
[318705084,1710375032370,-576.66327352,0.00024109,2]
[318705085,1710375032380,-850.0,0.0002411,2]
[318705086,1710375032390,-373.35,0.00024111,2]
[318705087,1710375032399,-150.0,0.00024433,120]
[318705088,1710375032409,-161.25245317,0.0002462,2]
[318705089,1710375032419,-546.41515178,0.00024718,2]
[318705090,1710375032429,-147.57143854,0.00024718,2]
[318705091,1710375032450,-489.67495061,0.00024718,2]
[318705092,1710375032459,-150.0,0.00024718,2]
[318705093,1710375032468,-665.98822496,0.00024719,120]
[318705094,1710375032483,-4778.45103526,0.00024719,120]
[318705095,1710375032493,-1410.2632106,0.00024719,30]
[318705096,1710375032502,-30000.0,0.00024719,90]
[318705097,1710375032512,-20000.0,0.00024719,120]
[318705098,1710375032522,-1728.81286031,0.00024719,2]
[318705099,1710375032531,-400.0,0.00025,3]
[318705100,1710375032540,-150.0,0.00025036,120]
[318705101,1710375032550,-1282.97,0.00025909,2]
[318705102,1710375032558,-152.42,0.00026109,2]
[318705103,1710375032568,-152.42,0.00026184,2]
[318705104,1710375032578,-152.42,0.0002626,2]
[318705105,1710375032588,-159.84001223,0.00026324,2]
[318705106,1710375032598,-152.42,0.00026336,2]
[318705107,1710375032609,-373.35,0.00026375,2]
[318705109,1710375032619,-154.47859242,0.0002641,2]
[318705111,1710375032629,-152.42,0.00026411,2]
[318705113,1710375032638,-363.4,0.00026473,2]
[318705115,1710375032648,-152.42,0.00026487,2]
[318705117,1710375032659,-169.11906362,0.000265,2]
[318705119,1710375032669,-159.07,0.00026531,120]
[318705124,1710375032679,-152.42,0.00026562,2]
[318705129,1710375032689,-153.0,0.00026575,2]
[318705133,1710375032697,-242.65,0.000266,2]
[318705136,1710375032706,-1500.0,0.00026624,3]
[318705138,1710375032715,-250.0,0.00026624,2]
[318705141,1710375032724,-152.42,0.00026638,2]
[318705144,1710375032738,-808.0,0.00026647,2]
[318705147,1710375032748,-156.52275154,0.0002667,2]
[318705149,1710375032757,-152.42,0.00026714,2]
[318705151,1710375032767,-152.42,0.00026789,2]
[318705153,1710375032777,-153.0,0.00026849,2]
[318705156,1710375032787,-152.42,0.00026865,2]
[318705157,1710375032796,-431.0754,0.00026867,2]
[318705158,1710375032806,-150.0,0.00026917,120]
[318705159,1710375032816,-152.42,0.0002694,2]
[318705160,1710375032825,-174.79,0.0002698,2]
[318705161,1710375032835,-162.77,0.00026994,2]
[318705162,1710375032844,-152.42,0.00027016,2]
[318705163,1710375032853,-152.42,0.00027092,2]
[318705164,1710375032862,-152.42,0.00027167,2]
[318705165,1710375032872,-210.0,0.00027189,2]
[318705166,1710375032881,-152.42,0.00027243,2]
[318705167,1710375032891,-152.42,0.00027318,2]
[318705168,1710375032900,-152.42,0.00027394,2]
[318705169,1710375032909,-152.42,0.0002747,2]
[318705170,1710375032918,-176.41765613,0.00027662,2]
[318705171,1710375032928,-154.47859242,0.00027823,2]
[318705172,1710375032942,-150.0,0.00027917,120]
[318705173,1710375032952,-150.0,0.0002815,120]
[318705174,1710375032961,-165.01341641,0.00028216,2]
[318705175,1710375032970,-373.35,0.00028639,2]
[318705176,1710375032981,-180.0,0.00028703,2]
[318705177,1710375032990,-157.99243845,0.00028828,2]
[318705178,1710375032999,-2041.0,0.000289,4]
[318705179,1710375033010,-130507.93933618,0.00029,2]
[318705180,1710375033035,-72344.32316315,0.00029,2]
[318705181,1710375033045,-504.16719331,0.00029145,4]
[318705182,1710375033054,-500.0,0.0002919,2]
[318705183,1710375033064,-23890.0,0.00029212,2]
[318705184,1710375033073,-250.0,0.00029245,2]
[318705185,1710375033082,-150.0,0.00029332,120]
[318705186,1710375033092,-250.0,0.00029458,2]
[318705187,1710375033101,-165.01341641,0.00029656,2]
[318705188,1710375033110,-504.16719331,0.00029724,4]
[318705189,1710375033119,-154.47859242,0.00029847,2]
[318705190,1710375033129,-159.07,0.00029847,120]
[318705191,1710375033138,-1493.78,0.00029926,2]
[318705192,1710375033147,-808.0,0.00029978,2]
[318705193,1710375033157,-7808.26931389,0.00029999,2]
[318705194,1710375033166,-185.76744145,0.0003,14]
[318705195,1710375033176,-2199.9999991,0.0003,3]
[318705196,1710375033185,-300.0,0.0003,5]
[318705197,1710375033194,-500.0,0.0003,5]
[318705198,1710375033203,-300.0,0.0003,5]
[318705199,1710375033212,-300.0,0.0003,5]
[318705200,1710375033222,-300.0,0.0003,5]
[318705201,1710375033231,-350.0,0.0003,5]
[318705202,1710375033241,-350.0,0.0003,5]
[318705203,1710375033251,-300.0,0.0003,5]
[318705204,1710375033260,-300.0,0.0003,5]
[318705205,1710375033270,-300.0,0.0003,5]
[318705206,1710375033281,-20000.0,0.0003,30]
[318705207,1710375033290,-18433.87439149,0.0003,15]
[318705208,1710375033310,-1032.87677638,0.0003,15]
[318705209,1710375033322,-533.24883213,0.0003,15]
[318705210,1710375033330,-695.56128849,0.0003,15]
[318705211,1710375033425,-1994.85875646,0.0003,15]
[318705212,1710375033437,-5713.96957268,0.0003,15]
[318705236,1710375038232,-211.24265939,0.00023857,2]
[318705237,1710375038242,-128.94719071,0.0003,15]
[318705252,1710375038402,-11466.66319166,0.0003,15]
[318705253,1710375038411,-20000.0,0.0003,2]
[318705254,1710375038421,-2066.28,0.00030137,10]
[318705255,1710375038431,-211.46942596,0.00030286,10]
[318705256,1710375038441,-504.16719331,0.00030304,5]
[318705257,1710375038450,-154.47859242,0.00030593,7]
[318705258,1710375038459,-15546.0,0.00030739,2]
[318705259,1710375038468,-192.0,0.00030817,2]
[318705260,1710375038477,-155.06,0.00030828,120]
[318705261,1710375038488,-4410.0,0.00030841,24]
[318705262,1710375038497,-157.2,0.0003088,2]
[318705263,1710375038506,-504.16719331,0.00030883,5]
[318705264,1710375038516,-373.35,0.00030903,2]
[318705265,1710375038525,-527.4,0.00030925,2]
[318705266,1710375038533,-153.09198222,0.00030953,7]
[318705267,1710375038542,-2141.35892827,0.00030957,4]
[318705268,1710375038552,-15366.65002074,0.00031,2]
[318705269,1710375038561,-500.0,0.00031,7]
[318705270,1710375038570,-540.0,0.00031004,2]
[318705271,1710375038579,-157.2,0.0003115,2]
[318705272,1710375038588,-156.400651,0.00031233,14]
[318705273,1710375038597,-157.2,0.0003142,2]
[318705274,1710375038606,-504.16719331,0.00031462,5]
[318705275,1710375038614,-157.2,0.00031691,2]
[318705276,1710375038624,-186.38,0.00031825,120]
[318705277,1710375038635,-3725.20305792,0.0003183,2]
[318705279,1710375038645,-958.0,0.0003186,2]
[318705280,1710375038654,-1377.0,0.0003186,2]
[318705281,1710375038665,-2704.0,0.0003186,2]
[318705282,1710375038675,-1228.0,0.0003186,2]
[318705283,1710375038684,-535.0,0.0003186,2]
[318705284,1710375038694,-479.097,0.0003186,2]
[318705285,1710375038705,-277.0,0.0003186,2]
[318705286,1710375038715,-602.0,0.0003186,2]
[318705287,1710375038725,-432.0,0.0003186,2]
[318705288,1710375038735,-1253.0,0.0003186,2]
[318705289,1710375038745,-1263.0,0.0003186,2]
[318705290,1710375038754,-210.0,0.0003186,2]
[318705291,1710375038763,-800.0,0.0003186,2]
[318705292,1710375038773,-413.0,0.0003186,2]
[318705293,1710375038783,-1136.0,0.0003186,2]
[318705294,1710375038792,-936.664,0.0003186,2]
[318705295,1710375038802,-483.286,0.0003186,2]
[318705296,1710375038811,-150.0,0.0003186,2]
[318705297,1710375038821,-5758.0,0.0003186,2]
[318705298,1710375038830,-7757.499,0.0003186,2]
[318705299,1710375038840,-813.439,0.0003186,2]
[318705300,1710375038850,-157.2,0.00031961,2]
[318705301,1710375038859,-61131.92337877,0.00032,60]
[318705302,1710375038869,-504.16719331,0.00032041,5]
[318705303,1710375038879,-156.400651,0.00032055,14]
[318705304,1710375038888,-176.41765613,0.00032104,7]
[318705305,1710375038897,-1451.89821293,0.00032167,2]
[318705306,1710375038906,-157.2,0.00032231,2]
[318705307,1710375038915,-3725.20305792,0.00032287,2]
[318705308,1710375038925,-4035.0,0.00032301,2]
[318705309,1710375038935,-887.0,0.00032301,2]
[318705310,1710375038944,-291.0,0.00032301,2]
[318705311,1710375038955,-1451.89821293,0.00032421,2]
[318705312,1710375038966,-200.0,0.00032438,2]
[318705313,1710375038975,-211.77456544,0.00032448,3]
[318705314,1710375038985,-800.0,0.00032457,5]
[318705315,1710375038994,-200.0,0.00032457,2]
[318705316,1710375039006,-200.0,0.00032476,2]
[318705317,1710375039015,-800.0,0.00032476,5]
[318705318,1710375039024,-200.0,0.00032476,2]
[318705319,1710375039034,-500.0,0.00032476,2]
[318705320,1710375039044,-200.0,0.00032476,2]
[318705321,1710375039053,-150.0,0.00032484,2]
[318705322,1710375039063,-300.0,0.00032489,2]
[318705323,1710375039073,-150.0,0.00032494,2]
[318705324,1710375039082,-800.0,0.00032494,5]
[318705325,1710375039093,-200.0,0.00032494,2]
[318705326,1710375039103,-150.0,0.00032496,2]
[318705327,1710375039114,-786.24,0.00032497,2]
[318705328,1710375039124,-151.031407,0.00032498,4]
[318705329,1710375039134,-151.031407,0.00032498,5]
[318705330,1710375039145,-150.0,0.00032499,2]
[318705331,1710375039154,-290.72943105,0.000325,14]
[318705332,1710375039164,-2859.33,0.000325,30]
[318705333,1710375039175,-2859.32,0.000325,30]
[318705334,1710375039186,-2859.33,0.000325,2]
[318705335,1710375039197,-2859.33,0.000325,2]
[318705336,1710375039207,-157.2,0.00032501,2]
[318705337,1710375039217,-300.0,0.00032503,2]
[318705338,1710375039227,-150.0,0.00032507,2]
[318705339,1710375039241,-150.0,0.00032511,2]
[318705340,1710375039250,-200.0,0.00032513,2]
[318705341,1710375039403,-800.0,0.00032513,5]
[318705342,1710375039454,-200.0,0.00032513,2]
[318705343,1710375039466,-500.0,0.00032513,2]
[318705344,1710375039478,-200.0,0.00032513,2]
[318705345,1710375039493,-1145.27250995,0.00032513,2]
[318705346,1710375039504,-150.0,0.00032516,2]
[318705347,1710375039514,-150.0,0.00032519,2]
[318705348,1710375039524,-275.56971518,0.00032522,2]
[318705349,1710375039533,-150.0,0.00032532,2]
[318705350,1710375039544,-150.0,0.00032544,2]
[318705351,1710375039558,-150.0,0.0003255,2]
[318705352,1710375039568,-150.0,0.00032552,2]
[318705353,1710375039580,-150.0,0.00032553,2]
[318705354,1710375039589,-150.0,0.00032562,2]
[318705355,1710375039598,-150.0,0.00032562,2]
[318705356,1710375039609,-150.0,0.00032565,2]
[318705357,1710375039621,-307.0,0.00032571,5]
[318705358,1710375039631,-345.00210859,0.00032571,2]
[318705359,1710375039646,-1154.99789141,0.00032571,2]
[318705360,1710375039657,-973.60210835,0.00032579,2]
[318705361,1710375039673,-279.1277888,0.00032579,2]
[318705364,1710375040468,-247.27010285,0.00032579,2]
[318705365,1710375040478,-150.0,0.0003258,2]
[318705366,1710375040489,-150.0,0.00032581,2]
[318705367,1710375040498,-150.0,0.00032582,2]
[318705368,1710375040508,-150.0,0.00032586,2]
[318705369,1710375040517,-195.91169255,0.00032587,2]
[318705370,1710375040526,-292.99346114,0.00032589,2]
[318705371,1710375040536,-150.0,0.00032592,2]
[318705372,1710375040545,-150.0,0.00032592,2]
[318705373,1710375040555,-743.92130977,0.00032597,5]
[318705374,1710375040567,-8521.60323804,0.00032597,5]
[318705375,1710375040577,-151.031407,0.00032598,3]
[318705376,1710375040585,-151.031407,0.00032598,3]
[318705377,1710375040594,-151.1607,0.000326,2]
[318705378,1710375040604,-1000.0,0.000326,2]
[318705380,1710375040612,-2644.02853543,0.000326,2]
[318705381,1710375040623,-476.03944407,0.000326,2]
[318705386,1710375043339,-1887.3521205,0.000326,2]
[318705387,1710375043350,-1093.45634009,0.000326,2]
[318705388,1710375043364,-8330.86724946,0.000326,2]
[318705389,1710375043377,-639.54577011,0.000326,2]
[318705390,1710375043390,-2992.80499793,0.000326,2]
[318705391,1710375043406,-3082.87156329,0.000326,2]
[318705392,1710375043418,-2736.5999995,0.000326,2]
[318705393,1710375043435,-1336.19587962,0.000326,2]
[318705394,1710375043445,-17270.5669,0.000326,2]
[318705395,1710375043456,-3076.34211561,0.000326,2]
[318705396,1710375043468,-34151.106,0.000326,2]
[318705397,1710375043494,-91970.58603286,0.000326,2]
[318705398,1710375043517,-999.7592673,0.000326,2]
[318705399,1710375043666,-844.7,0.000326,2]
[318705400,1710375043679,-7240.66194371,0.000326,2]
[318705405,1710375046595,-435.50108586,0.000326,2]
[318705406,1710375046606,-720.22,0.000326,2]
[318705407,1710375441541,-782.28942535,0.00023896,2]
[318705408,1710375441564,-211.24265939,0.00023896,2]
[318705409,1710375441584,-360.29098948,0.00023897,2]
[318705410,1710375441605,-534.88539808,0.00023898,2]
[318705411,1710375441625,-111.2915277,0.00023899,2]
[318705412,1710376093484,5000.0,0.00023,2]
[318705430,1710376231379,-211.24265939,0.00023674,2]
[318705431,1710376231389,-155.0,0.00023674,2]
[318705432,1710376231399,-357.84541,0.00023675,2]
[318705433,1710376231408,-549.18280422,0.00023676,2]
[318705434,1710376231440,-103.05759578,0.00023676,2]
[318705435,1710376231449,-269.79333903,0.00023768,2]
[318705436,1710376231459,-155.0,0.00023769,2]
[318705437,1710376231468,-1013.05215853,0.00023769,2]
[318705438,1710376231480,-358.180463,0.00023769,2]
[318705439,1710376231490,-9162.54543419,0.00023769,2]
[318705440,1710376231500,-4431.47408738,0.0002377,2]
[318705441,1710376231510,-163.06931194,0.00023801,2]
[318705442,1710376231519,-494.36,0.00023801,2]
[318705443,1710376231528,-310.0,0.00024007,2]
[318705444,1710376231537,-448.36606546,0.00024861,2]
[318705445,1710376231553,-106.63393454,0.00024861,2]
[318705446,1710376231562,-2248.21918942,0.00024861,120]
[318705447,1710376231574,-9218.44400223,0.00024861,120]
[318705448,1710376231583,-384.6,0.0002653,2]
[318705449,1710376231592,-79988.0,0.0002676,2]
[318705450,1710376231601,-176.41765613,0.00027627,2]
[318705451,1710376231610,-250.0,0.00028279,2]
[318705452,1710376231619,-484.8,0.00028346,2]
[318705453,1710376231629,-1382.13,0.00028534,2]
[318705454,1710376231638,-170.72,0.00028574,120]
[318705455,1710376231647,-647.12986428,0.00028642,2]
[318705456,1710376231659,-1527.24013572,0.00028642,2]
[318705457,1710376231668,-918.65,0.00028743,3]
[318705458,1710376231677,-384.6,0.00028794,2]
[318705459,1710376231686,-499.99,0.000289,2]
[318705460,1710376231695,-3725.20305797,0.00028922,2]
[318705461,1710376231705,-1623.48892524,0.00028922,4]
[318705462,1710376231714,-19167.85848107,0.00029,2]
[318705463,1710376231727,-719.0247636,0.00029,2]
[318705464,1710376231756,-182965.37925466,0.00029,2]
[318705465,1710376231765,-250.0,0.00029022,2]
[318705466,1710376231775,-211.46942596,0.0002919,2]
[318705467,1710376231785,-3725.20305792,0.00029397,2]
[318705468,1710376231795,-23590.5531525,0.00029399,2]
[318705469,1710376231820,-8585.5368475,0.00029399,2]
[318705470,1710376231831,-1623.48892522,0.00029533,4]
[318705471,1710376231841,-153.09198222,0.00029668,2]
[318705472,1710376231851,-3725.20305792,0.00029873,2]
[318705473,1710376231862,-3250.47299372,0.00029997,2]
[318705474,1710376231873,-1541.45517202,0.0003,4]
[318705475,1710376231883,-250.0,0.00030109,2]
[318705476,1710376231892,-2066.3,0.00030137,10]
[318705477,1710376231901,-1623.48892522,0.00030144,4]
[318705478,1710376231911,-181.7,0.00030193,2]
[318705480,1710376231922,-3725.20305792,0.00030348,2]
[318705482,1710376231932,-150.0,0.000305,2]
[318705484,1710376231943,-431.0754,0.00030686,2]
[318705486,1710376231952,-540.0,0.00030686,2]
[318705488,1710376231962,-196.42,0.00030721,2]
[318705490,1710376231972,-1623.48892522,0.00030755,5]
[318705492,1710376231984,-157.2,0.00030775,2]
[318705494,1710376231994,-3725.20305792,0.00030823,2]
[318705496,1710376232005,-384.6,0.00031058,2]
[318705498,1710376232015,-1259.16912078,0.00031093,5]
[318705500,1710376232025,-157.2,0.00031134,2]
[318705502,1710376232036,-1382.13,0.00031274,2]
[318705504,1710376232047,-3725.20305792,0.00031299,2]
[318705506,1710376232056,-168.366942,0.00031319,7]
[318705508,1710376232067,-199.706704,0.00031319,7]
[318705510,1710376232077,-193.917084,0.00031319,7]
[318705512,1710376232086,-180.420196,0.00031319,7]
[318705514,1710376232095,-515.2,0.0003136,2]
[318705515,1710376232105,-1623.48892522,0.00031367,5]
[318705516,1710376232114,-236.27,0.00031453,120]
[318705517,1710376232124,-157.2,0.00031493,2]
[318705518,1710376232135,-478.59,0.00031609,2]
[318705519,1710376232146,-3725.20305792,0.00031774,2]
[318705520,1710376232155,-157.2,0.00031852,2]
[318705521,1710376232166,-484.8,0.0003189,2]
[318705522,1710376232175,-168.366942,0.00031951,7]
[318705523,1710376232185,-1623.48892522,0.00031978,5]
[318705524,1710376232194,-150.0,0.00032,10]
[318705525,1710376232203,-156.400651,0.00032055,14]
[318705526,1710376232213,-154.47859242,0.00032092,7]
[318705527,1710376232224,-1000.0,0.000321,2]
[318705528,1710376232235,-157.2,0.00032211,2]
[318705529,1710376232245,-3725.20305792,0.00032249,2]
[318705530,1710376232255,-1451.89821293,0.00032258,2]
[318705531,1710376232265,-199.706704,0.00032268,7]
[318705532,1710376232278,-193.917084,0.00032268,7]
[318705533,1710376232288,-180.420196,0.00032268,7]
[318705534,1710376232298,-10390.9236,0.000324,2]
[318705535,1710376232308,-200.0,0.00032438,2]
[318705536,1710376232318,-211.77456544,0.00032448,3]
[318705537,1710376232327,-150.0,0.00032454,2]
[318705538,1710376232337,-200.0,0.00032457,2]
[318705539,1710376232348,-150.0,0.00032468,2]
[318705540,1710376232358,-200.0,0.00032476,2]
[318705541,1710376232369,-800.0,0.00032476,5]
[318705542,1710376232380,-200.0,0.00032476,2]
[318705543,1710376232389,-500.0,0.00032476,2]
[318705544,1710376232399,-200.0,0.00032476,2]
[318705545,1710376232409,-6394.57586695,0.00032479,2]
[318705546,1710376232418,-300.0,0.00032488,2]
[318705547,1710376232427,-150.0,0.0003249,2]
[318705548,1710376232438,-277.0,0.0003249,2]
[318705549,1710376232448,-432.0,0.0003249,2]
[318705550,1710376232459,-1253.0,0.0003249,2]
[318705551,1710376232470,-1263.0,0.0003249,2]
[318705552,1710376232481,-602.0,0.0003249,2]
[318705553,1710376232492,-936.664,0.0003249,2]
[318705554,1710376232502,-1136.0,0.0003249,2]
[318705555,1710376232512,-413.0,0.0003249,2]
[318705556,1710376232521,-800.0,0.0003249,2]
[318705557,1710376232531,-210.0,0.0003249,2]
[318705558,1710376232542,-483.286,0.0003249,2]
[318705559,1710376232551,-150.0,0.0003249,2]
[318705560,1710376232562,-5758.0,0.0003249,2]
[318705561,1710376232572,-2704.0,0.0003249,2]
[318705562,1710376232582,-1377.0,0.0003249,2]
[318705563,1710376232593,-813.439,0.0003249,2]
[318705564,1710376232603,-7757.499,0.0003249,2]
[318705565,1710376232613,-958.0,0.0003249,2]
[318705566,1710376232624,-479.097,0.0003249,2]
[318705567,1710376232635,-535.0,0.0003249,2]
[318705568,1710376232646,-200.0,0.00032494,2]
[318705569,1710376232658,-471.7818,0.000325,2]
[318705570,1710376232669,-150.0,0.000325,2]
[318705571,1710376232680,-1451.89821293,0.000325,2]
[318705572,1710376232690,-150.0,0.00032502,2]
[318705573,1710376232704,-1500.0,0.00032503,2]
[318705574,1710376232715,-152.66369781,0.00032508,2]
[318705575,1710376232725,-200.0,0.00032513,2]
[318705576,1710376232735,-500.0,0.00032513,2]
[318705577,1710376232747,-200.0,0.00032513,2]
[318705578,1710376232758,-195.81247102,0.00032522,2]
[318705579,1710376232768,-150.0,0.00032525,2]
[318705580,1710376232778,-150.0,0.00032525,2]
[318705581,1710376232788,-150.0,0.00032526,2]
[318705582,1710376232801,-150.0,0.00032532,2]
[318705583,1710376232811,-150.0,0.00032535,2]
[318705584,1710376232822,-150.0,0.00032544,2]
[318705585,1710376232832,-150.0,0.0003255,2]
[318705586,1710376232842,-150.0,0.00032558,2]
[318705587,1710376232853,-24026.45412817,0.0003256,14]
[318705588,1710376232865,-150.0,0.00032563,2]
[318705589,1710376232876,-150.0,0.0003257,2]
[318705590,1710376232886,-157.2,0.0003257,2]
[318705591,1710376232897,-1145.27250995,0.00032581,2]
[318705592,1710376232907,-168.366942,0.00032584,7]
[318705593,1710376232916,-150.0,0.00032585,2]
[318705594,1710376232927,-1623.48892522,0.00032589,6]
[318705595,1710376232937,-150.0,0.00032593,2]
[318705596,1710376232947,-151.031407,0.00032598,4]
[318705597,1710376232956,-3299.74911776,0.00032599,5]
[318705598,1710376232966,-150.0,0.00032599,2]
[318705599,1710376232975,-185.76744145,0.000326,14]
[318705600,1710376232985,-1259.16912078,0.000326,5]
[318705601,1710376232996,-786.24,0.000326,2]
[318705602,1710376233006,-2144.49,0.000326,30]
[318705603,1710376233017,-2144.5,0.000326,2]
[318705604,1710376233027,-1429.67,0.000326,2]
[318705605,1710376233037,-3000.0,0.000326,2]
[318705606,1710376233050,-4288.99,0.000326,30]
[318705607,1710376233061,-1429.66,0.000326,30]
[318705608,1710376233071,-300.0,0.00032604,2]
[318705609,1710376233080,-150.0,0.00032605,2]
[318705610,1710376233090,-150.0,0.00032608,2]
[318705611,1710376233101,-150.0,0.00032615,2]
[318705612,1710376233111,-1069.70928094,0.00032615,2]
[318705613,1710376233121,-1500.0,0.00032623,2]
[318705614,1710376233131,-150.0,0.00032628,2]
[318705615,1710376233142,-4035.0,0.00032634,2]
[318705616,1710376233152,-887.0,0.00032634,2]
[318705617,1710376233161,-291.0,0.00032634,2]
[318705618,1710376233171,-300.0,0.00032636,2]
[318705619,1710376233180,-150.0,0.00032643,2]
[318705620,1710376233189,-150.0,0.00032644,2]
[318705621,1710376233198,-275.56971518,0.00032645,2]
[318705622,1710376233208,-150.0,0.00032654,2]
[318705623,1710376233217,-150.0,0.00032655,2]
[318705624,1710376233226,-345.00210859,0.00032659,2]
[318705625,1710376233236,-150.0,0.00032659,2]
[318705626,1710376233245,-150.0,0.00032669,2]
[318705627,1710376233254,-150.0,0.00032672,2]
[318705628,1710376233263,-1661.02340303,0.00032675,4]
[318705629,1710376233273,-150.0,0.00032675,2]
[318705630,1710376233283,-150.0,0.00032675,2]
[318705631,1710376233296,-150.0,0.00032677,2]
[318705632,1710376233305,-191.44086947,0.0003269,2]
[318705633,1710376233314,-150.0,0.00032694,2]
[318705634,1710376233323,-151.031407,0.00032698,5]
[318705635,1710376233334,-156131.548606,0.000327,2]
[318705636,1710376233343,-10233.16,0.000327,2]
[318705637,1710376233352,-3004.11,0.000327,7]
[318705638,1710376233361,-8000.0,0.000327,5]
[318705639,1710376233373,-171.91766915,0.000327,2]
[318705640,1710376233383,-305.0,0.00032701,5]
[318705641,1710376233392,-150.0,0.00032702,2]
[318705642,1710376233402,-150.0,0.00032703,2]
[318705643,1710376233411,-150.0,0.00032704,2]
[318705644,1710376233420,-150.0,0.00032704,2]
[318705645,1710376233430,-150.0,0.00032705,2]
[318705646,1710376233439,-150.0,0.00032708,2]
[318705647,1710376233448,-150.0,0.00032709,2]
[318705648,1710376233457,-150.0,0.00032717,2]
[318705649,1710376233467,-1661.02340293,0.00032723,4]
[318705650,1710376233476,-1500.0,0.00032723,2]
[318705651,1710376233486,-3725.20305792,0.00032725,2]
[318705652,1710376233496,-150.0,0.00032728,2]
[318705653,1710376233505,-150.0,0.0003273,2]
[318705654,1710376233515,-5933.9425679,0.00032768,2]
[318705655,1710376233524,-843.8349394,0.00032768,2]
[318705656,1710376233534,-1661.02340293,0.0003277,4]
[318705657,1710376233543,-157.2,0.00032771,2]
[318705658,1710376233552,-163.06931194,0.00032774,2]
[318705659,1710376233561,-5000.0,0.00032774,2]
[318705660,1710376233570,-150.01,0.00032775,2]
[318705661,1710376233579,-1528.68414811,0.00032775,2]
[318705662,1710376233589,-556.71175352,0.00032775,2]
[318705663,1710376233598,-168.4698192,0.00032775,2]
[318705664,1710376233607,-2000.0,0.00032776,2]
[318705665,1710376233616,-55037.4728,0.00032776,3]
[318705666,1710376233625,-171.91766914,0.00032776,2]
[318705667,1710376233635,-546893.4034966,0.000328,2]
[318705668,1710376233643,-151.0,0.000328,7]
[318705669,1710376233653,-151.0,0.000328,7]
[318705670,1710376233662,-287.291151,0.000328,7]
[318705671,1710376233671,-287.291151,0.000328,7]
[318705672,1710376233680,-151.0,0.000328,7]
[318705673,1710376233689,-151.0,0.000328,7]
[318705674,1710376233698,-151.0,0.000328,7]
[318705675,1710376233707,-151.0,0.000328,7]
[318705676,1710376233716,-229.742382,0.000328,7]
[318705677,1710376233725,-151.0,0.000328,7]
[318705678,1710376233736,-151.0,0.000328,7]
[318705679,1710376233746,-151.0,0.000328,7]
[318705680,1710376233754,-151.0,0.000328,7]
[318705681,1710376233764,-151.0,0.000328,7]
[318705682,1710376233773,-287.0,0.000328,2]
[318705683,1710376233782,-1661.02340293,0.00032818,4]
[318705684,1710376233791,-217.01257534,0.00032841,2]
[318705685,1710376233799,-208.15480535,0.00032847,5]
[318705686,1710376233808,-166.2,0.00032848,2]
[318705687,1710376233818,-191.44086947,0.00032866,2]
[318705688,1710376233826,-1661.02340293,0.00032866,4]
[318705689,1710376233835,-343.41332094,0.00032871,120]
[318705690,1710376233847,-500.0,0.00032873,2]
[318705691,1710376233858,-463.68,0.00032873,2]
[318705692,1710376233867,-300306.5006648,0.00032874,2]
[318705693,1710376233877,-2552.75368364,0.00032874,4]